[Event "XXIX Cracovia 2018"]
[Site "Krakow"]
[Date "2018.12.29"]
[Round "3"]
[White "Bukojemski, Adam"]
[Black "Vojtek, Vladimir"]
[Result "0-1"]
[ECO "A06"]
[WhiteElo "2218"]
[BlackElo "2313"]
[Annotator "NA"]
[PlyCount "138"]
[EventDate "2018.12.27"]
[EventType "swiss"]
[EventCountry "POL"]
[SourceTitle "playchess.com"]
[Source "ChessBase"]
[SourceQuality "1"]
[TimeControl "40/5400+30:1800+30"]

1. c4 {[%emt 0:00:30]} e6 {[%emt 0:00:00]} 2. Nf3 {[%emt 0:00:29]} d5 {[%emt 0:00:05]} 3. e3 {[%emt 0:00:22]} Nf6 {[%emt 0:00:54]} 4. b3 {[%emt 0:00:28]} c5 {[%emt 0:01:32]} 5. Bb2 {[%emt 0:01:17]} Nc6 {[%emt 0:00:12]} 6. Be2 {[%emt 0:06:56]} Be7 {[%emt 0:07:27]} 7. O-O {[%emt 0:04:03]} d4 {[%emt 0:03:33]} 8. exd4 {[%emt 0:00:47]} cxd4 {[%emt 0:00:29]} 9. d3 {[%emt 0:00:07]} O-O {[%emt 0:00:47]} 10. Na3 {[%emt 0:07:12]} e5 {[%emt 0:02:04]} 11. Nc2 {[%emt 0:00:30]} Qc7 {[%emt 0:10:20]} 12. a3 {[%emt 0:02:21]} a5 {[%emt 0:00:52]} 13. Rb1 {[%emt 0:04:05]} Bf5 {[%emt 0:03:50]} 14. b4 {[%emt 0:02:05]} axb4 {[%emt 0:01:23]} 15. axb4 {[%emt 0:00:02]} b6 {[%emt 0:14:08]} 16. Nh4 {[%emt 0:03:46]} Bc8 {[%emt 0:13:51]} 17. f4 {[%emt 0:00:31]} Nxb4 {[%emt 0:08:54]} 18. fxe5 {[%emt 0:06:12]} Qxe5 {[%emt 0:07:44]} 19. Nf3 {[%emt 0:11:34]} Qc7 {[%emt 0:03:24]} 20. Nxb4 {[%emt 0:00:22]} Bxb4 {[%emt 0:00:13]} 21. Nxd4 {[%emt 0:00:54]} Bc5 {[%emt 0:08:38]} 22. Kh1 {[%emt 0:00:11]} Bd7 {[%emt 0:01:37]} 23. Nf5 {[%emt 0:01:40]} Bxf5 {[%emt 0:00:34]} 24. Rxf5 {[%emt 0:00:13]} Qd7 {[%emt 0:00:39]} 25. Rf4 {[%emt 0:05:37]} Be3 {[%emt 0:00:49]} 26. Rh4 {[%emt 0:03:14]} Qe7 {[%emt 0:02:59]} 27. Bf3 {[%emt 0:13:19]} Rad8 {[%emt 0:02:08]} 28. Qe2 {[%emt 0:01:05]} Bc5 {[%emt 0:01:10]} 29. d4 {[%emt 0:01:28]} Qxe2 {[%emt 0:00:58]} 30. Bxe2 {[%emt 0:00:01]} Rfe8 {[%emt 0:00:13]} 31. Bf1 {[%emt 0:18:30]} Bd6 {[%emt 0:00:14]} 32. Rh3 {[%emt 0:01:06]} Ne4 {[%emt 0:01:11]} 33. Kg1 {[%emt 0:00:09]} Nd2 {[%emt 0:01:48]} 34. Ra1 {[%emt 0:01:34]} Rc8 {[%emt 0:00:49]} 35. Rc3 {[%emt 0:02:07]} g6 {[%emt 0:00:55]} 36. Rd1 {[%emt 0:01:09]} Nxf1 {[%emt 0:00:22]} 37. Rxf1 {[%emt 0:00:01]} Re2 {[%emt 0:00:12]} 38. Bc1 {[%emt 0:02:15]} Bb4 {[%emt 0:00:30]} 39. Re3 {[%emt 0:00:00]} Rxe3 {[%emt 0:00:00]} 40. Bxe3 {[%emt 0:00:00]} Rxc4 {[%emt 0:00:00]} 41. Rf6 {[%emt 0:02:18]} Bc3 {[%emt 0:03:22]} 42. Rxb6 {[%emt 0:01:54]} Bxd4 {[%emt 0:00:07]} 43. Bxd4 {[%emt 0:00:01]} Rxd4 {[%emt 0:00:06]} 44. Kf2 {[%emt 0:00:12]} h5 {[%emt 0:00:24]} 45. Kf3 {[%emt 0:00:57]} Kg7 {[%emt 0:00:07]} 46. Rb7 {[%emt 0:00:51]} g5 {[%emt 0:00:48]} 47. h3 {[%emt 0:00:44]} Kg6 {[%emt 0:00:13]} 48. Rb6+ {[%emt 0:00:49]} f6 {[%emt 0:00:09]} 49. Ra6 {[%emt 0:00:14]} Rd3+ {[%emt 0:01:05]} 50. Ke2 {[%emt 0:00:48]} Rb3 {[%emt 0:01:52]} 51. Ra5 {[%emt 0:00:08]} g4 {[%emt 0:00:26]} 52. hxg4 {[%emt 0:01:25]} hxg4 {[%emt 0:00:01]} 53. Kf2 {[%emt 0:00:15]} g3+ {[%emt 0:00:15]} 54. Ke2 {[%emt 0:00:05]} f5 {[%emt 0:00:09]} 55. Ra6+ {[%emt 0:03:15]} Kg5 {[%emt 0:00:06]} 56. Ra8 {[%emt 0:00:03]} Kg4 {[%emt 0:00:13]} 57. Ra4+ {[%emt 0:01:18]} f4 {[%emt 0:00:53]} 58. Ra2 {[%emt 0:00:56]} f3+ {[%emt 0:04:09]} 59. gxf3+ {[%emt 0:00:42]} Rxf3 {[%emt 0:00:42]} 60. Ra8 {[%emt 0:00:19]} Rf2+ {[%emt 0:00:10]} 61. Ke1 {[%emt 0:02:09]} Kh3 {[%emt 0:00:07]} 62. Rh8+ {[%emt 0:01:13]} Kg2 {[%emt 0:00:05]} 63. Rg8 {[%emt 0:00:22]} Rf7 {[%emt 0:00:05]} 64. Re8 {[%emt 0:00:09]} Kg1 {[%emt 0:00:15]} 65. Ke2 {[%emt 0:00:48]} g2 {[%emt 0:01:43]} 66. Re6 {[%emt 0:00:14]} Rh7 {[%emt 0:00:32]} 67. Rg6 {[%emt 0:00:37]} Re7+ {[%emt 0:00:20]} 68. Kf3 {[%emt 0:00:08]} Kf1 {[%emt 0:00:16]} 69. Rxg2 {[%emt 0:00:13]} Rf7+ {[%emt 0:00:08]} 0-1

[Event "XXIX Cracovia 2018"]
[Site "Krakow"]
[Date "2018.12.29"]
[Round "3"]
[White "Szczurek, Krzysztof"]
[Black "Reza, Wojciech"]
[Result "0-1"]
[ECO "C54"]
[WhiteElo "2212"]
[BlackElo "2287"]
[Annotator "NA"]
[PlyCount "68"]
[EventDate "2018.12.27"]
[EventType "swiss"]
[EventCountry "POL"]
[SourceTitle "playchess.com"]
[Source "ChessBase"]
[SourceQuality "1"]
[TimeControl "40/5400+30:1800+30"]

1. e4 e5 2. Nf3 Nc6 3. Bc4 Bc5 4. c3 Nf6 5. d3 d5 6. exd5 Nxd5 7. b4 Be7 8. b5 Na5 9. Nxe5 O-O 10. Qf3 Be6 11. O-O f6 12. Ng4 Nxc4 13. dxc4 Nb6 14. Ne3 Nxc4 15. Qe4 Ne5 16. Rd1 Qc8 17. f4 Nf7 18. f5 Ng5 19. Qf4 Bd7 20. Ba3 Bxa3 21. Nxa3 c6 22. bxc6 Bxc6 23. Rd4 Re8 24. Nac4 Re4 25. Qg3 Qf8 26. Rad1 Rae8 27. Nc2 Re2 28. N4e3 Bxg2 29. Nxg2 Rxc2 30. Nf4 Qc5 31. Nd5 Re5 32. Kh1 Ree2 33. Ne3 Qc6+ 34. Kg1 Rxe3 0-1

[Event "XXIX Cracovia 2018"]
[Site "Krakow"]
[Date "2018.12.29"]
[Round "3"]
[White "Popiol, Michal"]
[Black "Nowicki, Bartosz"]
[Result "0-1"]
[ECO "A10"]
[WhiteElo "2169"]
[BlackElo "2305"]
[Annotator "NA"]
[PlyCount "100"]
[EventDate "2018.12.27"]
[EventType "swiss"]
[EventCountry "POL"]
[SourceTitle "playchess.com"]
[Source "ChessBase"]
[SourceQuality "1"]
[TimeControl "40/5400+30:1800+30"]

1. c4 {[%emt 0:00:00]} d6 {[%emt 0:05:32]} 2. Nc3 {[%emt 0:01:11]} g6 {[%emt 0:00:24]} 3. e4 {[%emt 0:03:16]} e5 {[%emt 0:02:17]} 4. g3 {[%emt 0:04:15]} Bg7 {[%emt 0:00:16]} 5. Bg2 {[%emt 0:00:06]} Nc6 {[%emt 0:00:06]} 6. d3 {[%emt 0:02:39]} Nd4 {[%emt 0:08:50]} 7. h3 {[%emt 0:04:11]} h5 {[%emt 0:02:49]} 8. Nge2 {[%emt 0:02:17]} h4 {[%emt 0:00:53]} 9. g4 {[%emt 0:01:56]} Ne6 {[%emt 0:02:06]} 10. f4 {[%emt 0:04:23]} exf4 {[%emt 0:03:32]} 11. Nxf4 {[%emt 0:07:26]} Be5 {[%emt 0:00:06]} 12. O-O {[%emt 0:02:11]} c6 {[%emt 0:04:51]} 13. Kh1 {[%emt 0:20:37]} Nxf4 {[%emt 0:07:54]} 14. Bxf4 {[%emt 0:00:06]} Bxf4 {[%emt 0:00:07]} 15. Rxf4 {[%emt 0:00:04]} g5 {[%emt 0:00:08]} 16. Rf2 {[%emt 0:04:51]} Ne7 {[%emt 0:12:29]} 17. Qf1 {[%emt 0:02:28]} Ng6 {[%emt 0:04:24]} 18. Rxf7 {[%emt 0:04:46]} Nf4 {[%emt 0:00:14]} 19. Rxf4 {[%emt 0:00:05]} gxf4 {[%emt 0:00:03]} 20. Qxf4 {[%emt 0:00:04]} Qe7 {[%emt 0:02:41]} 21. d4 {[%emt 0:03:13]} Bd7 {[%emt 0:03:06]} 22. e5 {[%emt 0:03:15]} dxe5 {[%emt 0:00:46]} 23. dxe5 {[%emt 0:00:06]} O-O-O {[%emt 0:00:48]} 24. Ne4 {[%emt 0:12:26]} Rhf8 {[%emt 0:01:08]} 25. Nf6 {[%emt 0:00:54]} Be6 {[%emt 0:05:04]} 26. b3 {[%emt 0:04:56]} Qc5 {[%emt 0:02:39]} 27. Re1 {[%emt 0:00:52]} Rd4 {[%emt 0:01:37]} 28. Ne4 {[%emt 0:02:09]} Qb4 {[%emt 0:03:21]} 29. Qe3 {[%emt 0:00:15]} Rd3 {[%emt 0:01:16]} 30. Qxd3 {[%emt 0:02:02]} Qxe1+ {[%emt 0:00:05]} 31. Kh2 {[%emt 0:00:04]} Rd8 {[%emt 0:00:36]} 32. Nd6+ {[%emt 0:01:48]} Kb8 {[%emt 0:01:59]} 33. Qe4 {[%emt 0:00:05]} Qg3+ {[%emt 0:01:54]} 34. Kh1 {[%emt 0:01:18]} Rd7 {[%emt 0:00:07]} 35. Qe2 {[%emt 0:04:14]} a5 {[%emt 0:10:02]} 36. Nf5 {[%emt 0:00:51]} Qf4 {[%emt 0:01:50]} 37. Nxh4 {[%emt 0:00:57]} Rd2 {[%emt 0:05:09]} 38. Qf3 {[%emt 0:00:06]} Qxe5 {[%emt 0:01:00]} 39. Ng6 {[%emt 0:00:34]} Qe1+ {[%emt 0:02:03]} 40. Kh2 {[%emt 0:00:00]} Rxa2 {[%emt 0:00:00]} 41. Qf8+ {[%emt 0:13:11]} Ka7 {[%emt 0:01:31]} 42. Qc5+ {[%emt 0:02:40]} Ka6 {[%emt 0:01:25]} 43. Nf4 {[%emt 0:00:30]} Qe4 {[%emt 0:18:56]} 44. Kg3 {[%emt 0:01:21]} Qe1+ {[%emt 0:00:11]} 45. Kh2 {[%emt 0:00:10]} Rb2 {[%emt 0:02:06]} 46. Qd6 {[%emt 0:05:02]} Qe4 {[%emt 0:01:34]} 47. Kg3 {[%emt 0:02:52]} Rxb3+ {[%emt 0:00:50]} 48. Kh4 {[%emt 0:00:25]} Qh7+ {[%emt 0:00:39]} 49. Kg5 {[%emt 0:00:37]} Bxc4 {[%emt 0:00:53]} 50. Bxc6 {[%emt 0:01:20]} Rb6 {[%emt 0:01:40]} 0-1

[Event "XXIX Cracovia 2018"]
[Site "Krakow"]
[Date "2018.12.29"]
[Round "3"]
[White "Sanz Wawer, Daniel"]
[Black "Miroshnichenko, Pavel"]
[Result "1/2-1/2"]
[ECO "D14"]
[WhiteElo "2127"]
[BlackElo "2275"]
[Annotator "NA"]
[PlyCount "20"]
[EventDate "2018.12.27"]
[EventType "swiss"]
[EventCountry "POL"]
[SourceTitle "playchess.com"]
[Source "ChessBase"]
[SourceQuality "1"]
[TimeControl "40/5400+30:1800+30"]

1. d4 {[%emt 0:00:42]} Nf6 {[%emt 0:00:00]} 2. c4 {[%emt 0:00:08]} c6 {[%emt 0:00:00]} 3. Nf3 {[%emt 0:00:33]} d5 {[%emt 0:00:00]} 4. cxd5 {[%emt 0:00:54]} cxd5 {[%emt 0:00:00]} 5. Nc3 {[%emt 0:01:23]} Nc6 {[%emt 0:00:17]} 6. Bf4 {[%emt 0:00:38]} Bf5 {[%emt 0:02:36]} 7. Rc1 {[%emt 0:06:01]} Nh5 {[%emt 0:09:32]} 8. Bd2 {[%emt 0:04:23]} Nf6 {[%emt 0:02:54]} 9. Bf4 {[%emt 0:01:02]} Nh5 {[%emt 0:01:28]} 10. Bd2 {[%emt 0:00:09]} Nf6 {[%emt 0:01:09]} 1/2-1/2

[Event "XXIX Cracovia 2018"]
[Site "Krakow"]
[Date "2018.12.29"]
[Round "3"]
[White "Kusnetsov, Igor"]
[Black "Rysaev, Danial"]
[Result "0-1"]
[ECO "A00"]
[WhiteElo "2094"]
[BlackElo "1945"]
[Annotator "NA"]
[PlyCount "108"]
[EventDate "2018.12.27"]
[EventType "swiss"]
[EventCountry "POL"]
[SourceTitle "playchess.com"]
[Source "ChessBase"]
[SourceQuality "1"]
[TimeControl "40/5400+30:1800+30"]

1. g3 {[%emt 0:00:00]} Nf6 {[%emt 0:01:45]} 2. Bg2 {[%emt 0:00:00]} g6 {[%emt 0:00:20]} 3. f4 {[%emt 0:00:58]} d6 {[%emt 0:06:06]} 4. Nf3 {[%emt 0:00:21]} Bg7 {[%emt 0:00:53]} 5. d3 {[%emt 0:00:21]} Nc6 {[%emt 0:10:29]} 6. e4 {[%emt 0:01:28]} e5 {[%emt 0:00:32]} 7. fxe5 {[%emt 0:06:46]} dxe5 {[%emt 0:00:59]} 8. Be3 {[%emt 0:01:22]} Be6 {[%emt 0:04:39]} 9. Nbd2 {[%emt 0:05:51]} Qd7 {[%emt 0:04:23]} 10. b4 {[%emt 0:03:58]} Ng4 {[%emt 0:07:59]} 11. Bg1 {[%emt 0:05:39]} Nxb4 {[%emt 0:00:51]} 12. h3 {[%emt 0:00:38]} Nh6 {[%emt 0:06:27]} 13. a3 {[%emt 0:09:30]} Nc6 {[%emt 0:00:56]} 14. Ng5 {[%emt 0:10:45]} O-O {[%emt 0:07:28]} 15. Nxe6 {[%emt 0:01:13]} Qxe6 {[%emt 0:00:13]} 16. Be3 {[%emt 0:01:51]} f6 {[%emt 0:03:52]} 17. Nb3 {[%emt 0:04:44]} Rad8 {[%emt 0:03:03]} 18. Qd2 {[%emt 0:03:21]} Nf7 {[%emt 0:02:14]} 19. Nc5 {[%emt 0:01:46]} Qc8 {[%emt 0:00:19]} 20. h4 {[%emt 0:00:27]} Nd6 {[%emt 0:02:33]} 21. Bh3 {[%emt 0:02:21]} f5 {[%emt 0:00:08]} 22. h5 {[%emt 0:02:55]} b6 {[%emt 0:13:08]} 23. hxg6 {[%emt 0:01:51]} bxc5 {[%emt 0:01:42]} 24. exf5 {[%emt 0:01:19]} Nxf5 {[%emt 0:00:34]} 25. Bxc5 {[%emt 0:13:15]} Ncd4 {[%emt 0:06:43]} 26. Bxd4 {[%emt 0:03:45]} exd4 {[%emt 0:00:19]} 27. gxh7+ {[%emt 0:00:06]} Kh8 {[%emt 0:00:05]} 28. O-O {[%emt 0:01:01]} Qe6 {[%emt 0:02:22]} 29. Rae1 {[%emt 0:07:56]} Qg6 {[%emt 0:00:29]} 30. Bxf5 {[%emt 0:06:22]} Rxf5 {[%emt 0:00:15]} 31. Qg2 {[%emt 0:02:49]} Bh6 {[%emt 0:01:03]} 32. Rxf5 {[%emt 0:00:22]} Qxf5 {[%emt 0:00:03]} 33. Qe4 {[%emt 0:00:25]} Qxe4 {[%emt 0:00:56]} 34. Rxe4 {[%emt 0:00:02]} Rd7 {[%emt 0:00:13]} 35. Re6 {[%emt 0:00:34]} Kxh7 {[%emt 0:00:37]} 36. Rc6 {[%emt 0:00:35]} Bf8 {[%emt 0:01:18]} 37. Ra6 {[%emt 0:00:45]} c5 {[%emt 0:00:15]} 38. Kg2 {[%emt 0:00:37]} Bd6 {[%emt 0:00:56]} 39. Kh3 {[%emt 0:00:16]} Kg6 {[%emt 0:00:40]} 40. Kg4 {[%emt 0:00:00]} Kf6 {[%emt 0:00:00]} 41. Kf3 {[%emt 0:01:36]} Ke5 {[%emt 0:00:24]} 42. g4 {[%emt 0:01:39]} Rf7+ {[%emt 0:00:44]} 43. Kg3 {[%emt 0:00:32]} Kd5+ {[%emt 0:00:48]} 44. Kh4 {[%emt 0:01:46]} Bf4 {[%emt 0:00:52]} 45. g5 {[%emt 0:00:44]} Be5 {[%emt 0:08:27]} 46. Kh5 {[%emt 0:01:48]} Rf2 {[%emt 0:00:58]} 47. g6 {[%emt 0:01:14]} Rxc2 {[%emt 0:00:14]} 48. Rxa7 {[%emt 0:00:07]} Rd2 {[%emt 0:00:14]} 49. a4 {[%emt 0:04:25]} Rxd3 {[%emt 0:00:11]} 50. a5 {[%emt 0:00:13]} Ra3 {[%emt 0:01:54]} 51. a6 {[%emt 0:00:19]} d3 {[%emt 0:02:14]} 52. Kg5 {[%emt 0:00:22]} Ke6 {[%emt 0:00:16]} 53. Ra8 {[%emt 0:01:11]} Bf6+ {[%emt 0:00:38]} 54. Kf4 {[%emt 0:03:41]} d2 {[%emt 0:00:09]} 0-1

[Event "XXIX Cracovia 2018"]
[Site "Krakow"]
[Date "2018.12.29"]
[Round "3"]
[White "Kvaratskhelia, Dimitri"]
[Black "Bakalarz, Leszek"]
[Result "1-0"]
[ECO "A46"]
[WhiteElo "1996"]
[BlackElo "1927"]
[Annotator "NA"]
[PlyCount "77"]
[EventDate "2018.12.27"]
[EventType "swiss"]
[EventCountry "POL"]
[SourceTitle "playchess.com"]
[Source "ChessBase"]
[SourceQuality "1"]
[TimeControl "40/5400+30:1800+30"]

1. d4 Nf6 2. Nf3 c5 3. e3 b6 4. Be2 Bb7 5. O-O e6 6. b3 Be7 7. Bb2 O-O 8. c4 d6 9. Nc3 Ne4 10. Qc2 f5 11. dxc5 bxc5 12. Rad1 Nxc3 13. Bxc3 Nd7 14. Qb2 Rf7 15. Rd2 a5 16. Rfd1 Qc7 17. Ne1 e5 18. f3 Ra6 19. Nc2 g5 20. Na3 Qb8 21. Nb5 Nf8 22. Qc2 Ne6 23. Bd3 Qf8 24. Re1 h5 25. h3 g4 26. Rf1 Qh6 27. Bxf5 gxf3 28. Bxe6 Qxe6 29. Nc7 Qh6 30. Nd5 Bxd5 31. cxd5 Qxe3+ 32. Kh1 Kf8 33. gxf3 a4 34. Rg2 axb3 35. Qxb3 Ra8 36. Qb7 Re8 37. Bd2 Qd3 38. Bh6+ Rg7 39. Rxg7 1-0

[Event "XXIX Cracovia 2018"]
[Site "Krakow"]
[Date "2018.12.29"]
[Round "3"]
[White "Brylski, Pawel"]
[Black "Zelak, Wladyslaw"]
[Result "1-0"]
[ECO "B23"]
[WhiteElo "1975"]
[BlackElo "1833"]
[Annotator "NA"]
[PlyCount "83"]
[EventDate "2018.12.27"]
[EventType "swiss"]
[EventCountry "POL"]
[SourceTitle "playchess.com"]
[Source "ChessBase"]
[SourceQuality "1"]
[TimeControl "40/5400+30:1800+30"]

1. e4 c5 2. Nc3 d6 3. f4 Nf6 4. Nf3 e6 5. Bb5+ Nc6 6. Bxc6+ bxc6 7. d3 Nd7 8. O-O Be7 9. Qe1 O-O 10. Qg3 Ba6 11. f5 e5 12. b3 Bb7 13. Bh6 Bf6 14. Qg4 d5 15. Kh1 Qe7 16. Rae1 Rfe8 17. Bc1 Qd6 18. Ng5 Bd8 19. Qh5 Bxg5 20. Bxg5 f6 21. Bc1 Nf8 22. Rf3 Re7 23. Ba3 g6 24. Qh6 Rg7 25. Na4 Nd7 26. Qe3 d4 27. Qd2 a5 28. fxg6 Rxg6 29. Ref1 Kg7 30. Qe1 Qe7 31. Qh4 Ba6 32. Rh3 Rh8 33. Qe1 Qe6 34. Bxc5 Bb5 35. Qxa5 Bxa4 36. bxa4 Qxa2 37. Qc7 Qe6 38. a5 Ra8 39. Bb4 Kh8 40. Rh4 Qa2 41. Rf5 Qe6 42. Rhh5 1-0

[Event "XXIX Cracovia 2018"]
[Site "Krakow"]
[Date "2018.12.29"]
[Round "3"]
[White "Jablonska, Sabina"]
[Black "Romashov, Anton"]
[Result "1-0"]
[ECO "A45"]
[WhiteElo "1964"]
[BlackElo "2076"]
[Annotator "NA"]
[PlyCount "95"]
[EventDate "2018.12.27"]
[EventType "swiss"]
[EventCountry "POL"]
[SourceTitle "playchess.com"]
[Source "ChessBase"]
[SourceQuality "1"]
[TimeControl "40/5400+30:1800+30"]

1. d4 {[%emt 0:00:00]} Nf6 {[%emt 0:00:14]} 2. Bf4 {[%emt 0:00:00]} e6 {[%emt 0:01:55]} 3. Nf3 {[%emt 0:05:02]} c5 {[%emt 0:01:17]} 4. c3 {[%emt 0:01:33]} Nc6 {[%emt 0:03:27]} 5. e3 {[%emt 0:04:47]} Be7 {[%emt 0:05:42]} 6. Nbd2 {[%emt 0:02:38]} Nh5 {[%emt 0:01:44]} 7. Bg3 {[%emt 0:01:40]} Nxg3 {[%emt 0:01:07]} 8. hxg3 {[%emt 0:00:06]} cxd4 {[%emt 0:03:00]} 9. exd4 {[%emt 0:04:49]} d5 {[%emt 0:02:46]} 10. Bd3 {[%emt 0:00:50]} h6 {[%emt 0:01:32]} 11. Ne5 {[%emt 0:23:29]} Nxe5 {[%emt 0:04:19]} 12. dxe5 {[%emt 0:02:18]} Qb6 {[%emt 0:00:13]} 13. Qc2 {[%emt 0:02:50]} Bd7 {[%emt 0:02:39]} 14. a4 {[%emt 0:05:49]} Rc8 {[%emt 0:06:40]} 15. Nf3 {[%emt 0:08:23]} Bc5 {[%emt 0:06:14]} 16. Qe2 {[%emt 0:04:43]} a6 {[%emt 0:13:08]} 17. g4 {[%emt 0:02:52]} d4 {[%emt 0:01:39]} 18. a5 {[%emt 0:04:13]} Qa7 {[%emt 0:00:19]} 19. c4 {[%emt 0:11:16]} Bb4+ {[%emt 0:00:39]} 20. Kf1 {[%emt 0:00:05]} Bc6 {[%emt 0:04:17]} 21. Nd2 {[%emt 0:03:14]} Bxd2 {[%emt 0:03:38]} 22. Qxd2 {[%emt 0:00:05]} Qc5 {[%emt 0:00:12]} 23. f4 {[%emt 0:01:26]} Rf8 {[%emt 0:10:01]} 24. b4 {[%emt 0:00:37]} Qa7 {[%emt 0:01:00]} 25. Re1 {[%emt 0:01:00]} b6 {[%emt 0:05:30]} 26. axb6 {[%emt 0:00:42]} Qxb6 {[%emt 0:00:02]} 27. c5 {[%emt 0:00:08]} Qb7 {[%emt 0:00:31]} 28. Rb1 {[%emt 0:02:29]} Rb8 {[%emt 0:01:01]} 29. Qe2 {[%emt 0:01:08]} Bb5 {[%emt 0:01:49]} 30. Rh3 {[%emt 0:00:06]} Ke7 {[%emt 0:03:16]} 31. Bxb5 {[%emt 0:02:55]} Qxb5 {[%emt 0:00:01]} 32. Ra3 {[%emt 0:00:26]} Rfc8 {[%emt 0:02:01]} 33. Qxb5 {[%emt 0:03:09]} Rxb5 {[%emt 0:00:23]} 34. Rxa6 {[%emt 0:00:47]} Rcxc5 {[%emt 0:02:48]} 35. Ra7+ {[%emt 0:00:14]} Ke8 {[%emt 0:01:16]} 36. bxc5 {[%emt 0:00:32]} Rxb1+ {[%emt 0:00:05]} 37. Ke2 {[%emt 0:00:03]} Rc1 {[%emt 0:00:07]} 38. Rc7 {[%emt 0:00:31]} Rc3 {[%emt 0:00:24]} 39. c6 {[%emt 0:01:27]} g5 {[%emt 0:03:25]} 40. f5 {[%emt 0:00:00]} exf5 {[%emt 0:00:00]} 41. gxf5 {[%emt 0:04:02]} Re3+ {[%emt 0:14:04]} 42. Kd2 {[%emt 0:00:40]} Rxe5 {[%emt 0:00:05]} 43. f6 {[%emt 0:00:16]} Rd5 {[%emt 0:00:58]} 44. Re7+ {[%emt 0:03:26]} Kd8 {[%emt 0:00:01]} 45. Rxf7 {[%emt 0:02:00]} Rf5 {[%emt 0:02:07]} 46. Rd7+ {[%emt 0:02:57]} Kc8 {[%emt 0:00:38]} 47. f7 {[%emt 0:00:10]} Rf6 {[%emt 0:00:08]} 48. Re7 {[%emt 0:00:29]} 1-0

[Event "XXIX Cracovia 2018"]
[Site "Krakow"]
[Date "2018.12.29"]
[Round "3"]
[White "Smal, Tobiasz"]
[Black "Andronescu, Madalin"]
[Result "1-0"]
[ECO "B54"]
[WhiteElo "1958"]
[BlackElo "2070"]
[Annotator "NA"]
[PlyCount "65"]
[EventDate "2018.12.27"]
[EventType "swiss"]
[EventCountry "POL"]
[SourceTitle "playchess.com"]
[Source "ChessBase"]
[SourceQuality "1"]
[TimeControl "40/5400+30:1800+30"]

1. e4 {[%emt 0:02:05]} c5 {[%emt 0:00:00]} 2. Nf3 {[%emt 0:00:21]} d6 {[%emt 0:00:00]} 3. d4 {[%emt 0:00:06]} cxd4 {[%emt 0:00:00]} 4. Nxd4 {[%emt 0:00:04]} Nf6 {[%emt 0:00:01]} 5. f3 {[%emt 0:00:06]} Nc6 {[%emt 0:00:48]} 6. c4 {[%emt 0:00:22]} g6 {[%emt 0:02:02]} 7. Nc3 {[%emt 0:00:41]} Bg7 {[%emt 0:00:08]} 8. Be3 {[%emt 0:00:18]} O-O {[%emt 0:00:44]} 9. Qd2 {[%emt 0:01:23]} Be6 {[%emt 0:03:05]} 10. Nxe6 {[%emt 0:08:55]} fxe6 {[%emt 0:00:06]} 11. Be2 {[%emt 0:00:08]} Rc8 {[%emt 0:01:56]} 12. O-O {[%emt 0:00:31]} Qa5 {[%emt 0:00:33]} 13. a3 {[%emt 0:05:43]} Ne5 {[%emt 0:04:51]} 14. b4 {[%emt 0:07:36]} Qd8 {[%emt 0:00:51]} 15. Qa2 {[%emt 0:04:14]} Nh5 {[%emt 0:12:32]} 16. f4 {[%emt 0:03:46]} Nc6 {[%emt 0:00:46]} 17. Rac1 {[%emt 0:00:57]} Nf6 {[%emt 0:02:06]} 18. c5 {[%emt 0:13:28]} d5 {[%emt 0:00:16]} 19. Rfd1 {[%emt 0:01:11]} Kh8 {[%emt 0:01:12]} 20. exd5 {[%emt 0:00:50]} exd5 {[%emt 0:00:25]} 21. Nxd5 {[%emt 0:00:27]} Nxd5 {[%emt 0:00:06]} 22. Qxd5 {[%emt 0:01:09]} Qxd5 {[%emt 0:00:24]} 23. Rxd5 {[%emt 0:00:05]} e5 {[%emt 0:00:17]} 24. fxe5 {[%emt 0:02:54]} Nxe5 {[%emt 0:00:13]} 25. Rf1 {[%emt 0:02:43]} Rfe8 {[%emt 0:00:32]} 26. Bb5 {[%emt 0:00:46]} Ng4 {[%emt 0:04:28]} 27. Bd4 {[%emt 0:03:12]} Red8 {[%emt 0:01:20]} 28. Bxg7+ {[%emt 0:01:00]} Kxg7 {[%emt 0:00:04]} 29. Rd7+ {[%emt 0:00:09]} Kh6 {[%emt 0:00:51]} 30. Rff7 {[%emt 0:04:58]} Rh8 {[%emt 0:00:09]} 31. Rxb7 {[%emt 0:00:49]} Rcd8 {[%emt 0:00:09]} 32. c6 {[%emt 0:01:28]} Rd1+ {[%emt 0:00:38]} 33. Rf1 {[%emt 0:00:29]} 1-0

[Event "XXIX Cracovia 2018"]
[Site "Krakow"]
[Date "2018.12.29"]
[Round "3"]
[White "Dzida, Kamil"]
[Black "Patsia, Zviad"]
[Result "0-1"]
[ECO "D38"]
[WhiteElo "1951"]
[BlackElo "2058"]
[Annotator "NA"]
[PlyCount "92"]
[EventDate "2018.12.27"]
[EventType "swiss"]
[EventCountry "POL"]
[SourceTitle "playchess.com"]
[Source "ChessBase"]
[SourceQuality "1"]
[TimeControl "40/5400+30:1800+30"]

1. d4 d5 2. c4 e6 3. Nf3 Nf6 4. Nc3 Bb4 5. Bg5 c5 6. cxd5 exd5 7. e3 Bxc3+ 8. bxc3 Qa5 9. Bxf6 gxf6 10. Qd2 c4 11. Be2 Be6 12. O-O Nd7 13. Qc2 f5 14. Nh4 O-O-O 15. Nxf5 Nf6 16. Ng3 h5 17. h4 Qc7 18. e4 Qf4 19. exd5 Nxd5 20. Bxc4 Qxh4 21. Qe4 Qg5 22. Bxd5 Qxd5 23. Qxd5 Rxd5 24. Rfe1 h4 25. Ne4 h3 26. gxh3 Bxh3 27. Re3 f5 28. Ng5 f4 29. Re5 Rxe5 30. dxe5 Bd7 31. Ne4 Bc6 32. f3 Rh5 33. Re1 Kd8 34. Nf6 Rh3 35. e6 Rg3+ 36. Kh2 Ke7 37. Nh5 Rxf3 38. Ng7 Kf6 39. Nh5+ Kg6 40. Re5 Rf1 41. Kh3 f3 42. Ng3 Rg1 43. Kg4 Kf6 44. Rf5+ Kxe6 45. Rf4 Rg2 46. Kh3 Rxa2 0-1

[Event "XXIX Cracovia 2018"]
[Site "Krakow"]
[Date "2018.12.29"]
[Round "3"]
[White "Gawronski, Lukasz"]
[Black "Szczecina, Kamil"]
[Result "1/2-1/2"]
[ECO "D55"]
[WhiteElo "1916"]
[BlackElo "1986"]
[Annotator "NA"]
[PlyCount "45"]
[EventDate "2018.12.27"]
[EventType "swiss"]
[EventCountry "POL"]
[SourceTitle "playchess.com"]
[Source "ChessBase"]
[SourceQuality "1"]
[TimeControl "40/5400+30:1800+30"]

1. d4 Nf6 2. Nf3 d5 3. c4 e6 4. Nc3 Be7 5. Bg5 O-O 6. e3 b6 7. cxd5 exd5 8. Rc1 Bb7 9. Bd3 Nbd7 10. O-O c5 11. Qe2 a6 12. Rfd1 c4 13. Bb1 b5 14. a3 Re8 15. Ne5 Ne4 16. Bf4 Bf6 17. Ng4 Bg5 18. Bg3 f5 19. Ne5 Bf6 20. f4 Nf8 21. Be1 Qb6 22. Qh5 g6 23. Qh3 1/2-1/2